fUSD/lending_fUSD_20240915
["ID","MTS","AMOUNT","RATE_DAILY","PERIOD"]
[338176915,1726358402998,150.0,0.00012314,2]
[338176916,1726358403277,150.0,0.00012314,2]
[338176917,1726358403910,150.0,0.00012314,2]
[338176918,1726358404597,150.0,0.00012314,2]
[338176919,1726358404869,150.0,0.00012314,2]
[338176920,1726358404899,150.0,0.00012314,2]
[338176921,1726358411696,2403.39,0.00012314,2]
[338176922,1726358434426,540.3710502,0.00012263,2]
[338176923,1726358434453,953.6089498,0.00012263,2]
[338176924,1726358515047,153.92,0.00010959,2]
[338176925,1726358531323,5386.14,0.000125,2]
[338176926,1726358534825,2000.0,0.000122,2]
[338176927,1726358556554,560.27,0.00012257,2]
[338176928,1726358560950,250.0,0.00012257,2]
[338176929,1726358582610,250.0,0.00012407,2]
[338176930,1726358607008,11329.87342219,0.00012599,2]
[338176932,1726358661414,450.0,0.00012596,2]
[338176933,1726358663330,6189.9449,0.00012558,2]
[338176934,1726358679250,214.65,0.00010705,2]
[338176935,1726358685742,391.21861396,0.00012635,2]
[338176936,1726358686843,356.68,0.00010959,2]
[338176937,1726358706736,965.08,0.00012216,2]
[338176938,1726358812587,250.0,0.00012412,2]
[338176944,1726359005564,153.75,0.0001245,2]
[338176945,1726359005589,17.22,0.0001245,2]
[338176946,1726359009606,443.0931,0.00012561,2]
[338176947,1726359031641,-150.0,0.00012661,2]
[338176948,1726359031650,-219.80793522,0.00012689,2]
[338176949,1726359031660,-521.35383733,0.00012701,2]
[338176950,1726359031671,-8755.85616267,0.00012701,2]
[338176951,1726359031681,-150.0,0.00012789,2]
[338176952,1726359031690,-851.55997,0.00012789,2]
[338176953,1726359031700,-973.13388201,0.0001279,2]
[338176954,1726359031733,-534.83187124,0.0001279,2]
[338176955,1726359031749,-7667.349033,0.0001279,2]
[338176956,1726359031760,-31094.57336559,0.0001279,2]
[338176957,1726359031771,-10977.721407,0.0001279,2]
[338176958,1726359031782,-6271.05996395,0.0001279,2]
[338176959,1726359031805,-4600.58220704,0.0001279,2]
[338176960,1726359031815,-3030.915,0.000128,2]
[338176961,1726359031824,-1906.45942815,0.000128,2]
[338176962,1726359031834,-1371.10711012,0.000128,2]
[338176963,1726359031846,-1128.89288988,0.000128,2]
[338176964,1726359031855,-1248.25051,0.0001287,2]
[338176965,1726359031864,-1248.2505,0.0001287,2]
[338176966,1726359031873,-500.0,0.00012873,2]
[338176967,1726359031882,-388.92563463,0.00012873,2]
[338176968,1726359031891,-56958.3748,0.000129,2]
[338176969,1726359031900,-52529.4279,0.000129,2]
[338176970,1726359031909,-1000.0,0.000129,2]
[338176971,1726359031919,-176.657109,0.000129,2]
[338176972,1726359031928,-167.27570748,0.000129,2]
[338176973,1726359031937,-185.6758451,0.000129,2]
[338176974,1726359031948,-499.99,0.000129,2]
[338176975,1726359031958,-316.51690375,0.000129,2]
[338176976,1726359031967,-1300.6968459,0.000129,2]
[338176977,1726359031976,-163.67346564,0.000129,2]
[338176978,1726359031985,-171.25223682,0.000129,2]
[338176979,1726359031995,-189.55387216,0.000129,2]
[338176980,1726359032004,-3736.01,0.0001293,2]
[338176981,1726359032013,-214.65,0.00012969,2]
[338176982,1726359032022,-500.0,0.00012973,2]
[338176983,1726359032031,-171.08649104,0.0001299,2]
[338176984,1726359032040,-178.27,0.0001299,2]
[338176985,1726359032049,-374114.99184068,0.00013,2]
[338176986,1726359032060,-2423.11071755,0.00013,2]
[338176987,1726359032081,-743.12178504,0.00013,2]
[338176988,1726359032092,-462.53216332,0.00013,2]
[338176989,1726359032103,-51281.32712503,0.00013,2]
[338176990,1726359032113,-11506.71936319,0.00013,2]
[338176991,1726359032124,-883.54995,0.00013,2]
[338176992,1726359032135,-846.47,0.00013,2]
[338176993,1726359032147,-350.2299999,0.00013,2]
[338176994,1726359032161,-3201.75970489,0.00013,2]
[338176995,1726359032172,-153385.55194873,0.00013,2]
[338176996,1726359032183,-1443.6854515,0.00013,2]
[338176999,1726359037668,-2038.9059,0.000128,2]
[338177000,1726359037678,-4864.28091663,0.00013,2]
[338177001,1726359037778,-27931.53419624,0.00013,2]
[338177002,1726359037787,-555430.44674811,0.00013,2]
[338177003,1726359037799,-287.75747,0.00013,2]
[338177004,1726359037810,-11247.48919341,0.00013,2]
[338177005,1726359037832,-17472.94587554,0.00013,2]
[338177006,1726359037885,-5396.8,0.00013,2]
[338177007,1726359037896,-2477.42473158,0.00013,2]
[338177008,1726359037907,-461.545,0.00013,2]
[338177009,1726359037919,-27245.02591253,0.00013,2]
[338177057,1726359040102,-351130.42761148,0.00013,2]
[338177059,1726359040113,-400.07483383,0.00013,2]
[338177061,1726359040123,-745.83403878,0.00013,2]
[338177063,1726359040134,-5464.19112739,0.00013,2]
[338177143,1726359043380,-123159.30136307,0.00013,2]
[338177144,1726359043391,-38846.95112842,0.00013,2]
[338177145,1726359043402,-7084.32102208,0.00013,2]
[338177146,1726359043413,-5161.16,0.00013,2]
[338177147,1726359043448,-408290.62961281,0.00013,2]
[338177148,1726359045672,-303.9776029,0.00013,2]
[338177149,1726359046327,-3698.41152261,0.00013,2]
[338177150,1726359075696,258.4,0.00012561,2]
[338177151,1726359094218,157.56,0.00010959,2]
[338177152,1726359115695,250.0,0.00012566,2]
[338177154,1726359168296,218.67,9.994e-05,2]
[338177155,1726359168522,218.67,0.00012258,2]
[338177156,1726359201457,494.79,0.00011911,2]
[338177157,1726359208942,250.0,0.00011911,2]
[338177158,1726359211846,14762.7286,0.0001264,2]
[338177159,1726359260227,356.19,0.00011911,2]
[338177160,1726359276319,1000.0,0.00011911,2]
[338177161,1726359298325,664.45,0.00011911,2]
[338177162,1726359398215,250.0,0.00011909,2]
[338177163,1726359413711,7217.499,0.0001264,2]
[338177164,1726359495604,27465.38,0.00012055,2]
[338177165,1726359565312,1710.92,0.00011903,2]
[338177166,1726359567925,8005.38,0.00011903,2]
[338177167,1726359574912,5747.34,0.00011903,2]
[338177168,1726359602588,150.0,0.00011903,2]
[338177169,1726359602806,150.0,0.00011903,2]
[338177170,1726359603047,150.0,0.00011903,2]
[338177171,1726359603239,150.0,0.00011903,2]
[338177172,1726359603522,150.0,0.00011903,2]
[338177173,1726359603722,150.0,0.00011903,2]
[338177174,1726359603977,296.0,0.00011903,2]
[338177175,1726359624081,158.17,0.00011911,2]
[338177176,1726359624291,158.17,0.00011919,2]
[338177177,1726359624718,158.17,0.00011926,2]
[338177178,1726359624940,158.17,0.00011934,2]
[338177179,1726359625387,158.17,0.00011941,2]
[338177180,1726359625623,158.17,0.00011949,2]
[338177181,1726359625821,158.17,0.00011956,2]
[338177182,1726359626062,158.17,0.00011964,2]
[338177183,1726359626266,158.17,0.00011971,2]
[338177184,1726359627427,170.35,0.00010959,2]
[338177186,1726359695220,247.39,0.00011902,2]
[338177187,1726359727941,1050.0,0.00011,2]
[338177188,1726359734572,391.21861397,0.00012641,2]
[338177189,1726359744117,250.0,0.00011903,2]
[338177190,1726359765647,150.97,0.00011903,2]
[338177191,1726359770998,210.47,9.989e-05,2]
[338177192,1726359771198,210.47,0.00012253,2]
[338177193,1726359890458,1000.0,0.00011891,2]
[338177194,1726359937008,250.0,0.00011891,2]
[338177195,1726360020949,500.0,0.000126,4]
[338177196,1726360028385,2159.56,0.00011893,2]
[338177197,1726360038571,4104.820221,0.00012636,2]
[338177202,1726360107670,820.44,0.00011892,2]
[338177206,1726360153410,153.81,0.00011891,2]
[338177212,1726360186656,190.82,0.00010959,2]
[338177213,1726360198577,150.0,0.00011891,2]
[338177219,1726360231848,-156.18,0.0001269,2]
[338177220,1726360231857,-312.84406266,0.000127,4]
[338177221,1726360231869,-636.97482507,0.000127,4]
[338177222,1726360231880,-50.18111227,0.000127,4]
[338177223,1726360231890,-150.0,0.00012723,2]
[338177224,1726360231900,-150.0,0.00012732,2]
[338177225,1726360231909,-1033.23789991,0.0001274,2]
[338177226,1726360231920,-127.138683,0.0001274,2]
[338177227,1726360231932,-415.22091175,0.0001274,2]
[338177228,1726360231944,-291.65,0.0001274,2]
[338177229,1726360232060,-223.78071765,0.0001274,2]
[338177230,1726360232069,-151.23679885,0.00012749,2]
[338177231,1726360232079,-1500.0,0.00012755,2]
[338177232,1726360232088,-150.0,0.0001277,2]
[338177233,1726360232097,-150.0,0.00012774,2]
[338177234,1726360232106,-150.0,0.00012792,2]
[338177235,1726360232115,-150.0,0.00012792,2]
[338177236,1726360232124,-150.0,0.00012792,2]
[338177237,1726360232133,-239.08411629,0.00012794,2]
[338177238,1726360232142,-499.99,0.00012794,2]
[338177239,1726360232151,-144.89836721,0.00012796,2]
[338177240,1726360232163,-5.10163279,0.00012796,2]
[338177241,1726360232172,-150.0,0.00012798,2]
[338177242,1726360232182,-993.2931,0.000128,2]
[338177243,1726360232191,-1500.0,0.000128,4]
[338177244,1726360232200,-150.0,0.00012801,2]
[338177245,1726360232210,-150.0,0.00012808,2]
[338177246,1726360232219,-150.0,0.00012812,2]
[338177247,1726360232229,-150.0,0.00012816,2]
[338177248,1726360232238,-293.0,0.0001283,2]
[338177249,1726360232247,-150.0,0.00012831,2]
[338177250,1726360232257,-150.0,0.00012865,2]
[338177251,1726360232266,-150.0,0.00012867,2]
[338177252,1726360232275,-150.0,0.00012869,2]
[338177253,1726360232285,-150.0,0.00012869,2]
[338177254,1726360232294,-324.82579,0.0001287,2]
[338177255,1726360232303,-150.0,0.00012875,2]
[338177256,1726360232313,-150.0,0.00012881,2]
[338177257,1726360232322,-663.63405221,0.00012889,2]
[338177258,1726360232369,-625.78642624,0.00012889,2]
[338177259,1726360232403,-210.57952155,0.00012889,2]
[338177260,1726360232412,-158.39331481,0.000129,2]
[338177261,1726360232422,-983.2346,0.000129,2]
[338177262,1726360232431,-2315.1751,0.000129,2]
[338177263,1726360232441,-177.1579,0.000129,2]
[338177264,1726360232451,-2454.68008756,0.000129,2]
[338177265,1726360232460,-2000.0,0.000129,4]
[338177266,1726360232470,-157.63939403,0.000129,2]
[338177267,1726360232479,-316.51690374,0.000129,2]
[338177268,1726360232488,-150.0,0.00012918,2]
[338177269,1726360232496,-150.0,0.00012929,2]
[338177270,1726360232505,-150.0,0.00012935,2]
[338177271,1726360232514,-150.0,0.00012946,2]
[338177272,1726360232523,-150.0,0.00012959,2]
[338177273,1726360232533,-272.3254622,0.00012969,2]
[338177274,1726360232542,-98.75396491,0.00012973,2]
[338177275,1726360232554,-401.24603509,0.00012973,2]
[338177276,1726360232563,-392.88576256,0.00012973,2]
[338177277,1726360232596,-107.11423744,0.00012973,2]
[338177278,1726360232605,-150.0,0.00012973,2]
[338177279,1726360232614,-150.0,0.00012977,2]
[338177280,1726360232623,-150.0,0.00012996,2]
[338177281,1726360232632,-150.0,0.00012998,2]
[338177282,1726360232641,-1497.5901863,0.00012999,2]
[338177283,1726360237848,-271.83133004,0.00012999,2]
[338177284,1726360237858,-3888.1258009,0.00013,2]
[338177285,1726360238014,-728.74047145,0.00013,2]
[338177286,1726360238178,-6445.5,0.00013,2]
[338177290,1726360239810,-13807.5378023,0.00013,2]
[338177291,1726360239821,-455851.31609365,0.00013,2]
[338177292,1726360239831,-2000.0,0.00013,2]
[338177293,1726360239841,-200.0,0.00013,2]
[338177294,1726360239850,-1100.0,0.00013,2]
[338177295,1726360239861,-385329.89213092,0.00013,2]
[338177296,1726360239875,-308644.59859788,0.00013,2]
[338177297,1726360239994,-5257.81423663,0.00013,2]
[338177298,1726360240006,-573.16626518,0.00013,2]
[338177299,1726360240017,-611.11,0.00013,2]
[338177300,1726360240097,-45542.4128972,0.00013,2]
[338177301,1726360240127,-165102.10526792,0.00013,2]
[338177302,1726360240139,-624.83194608,0.00013,2]
[338177303,1726360240151,-601.525,0.00013,2]
[338177304,1726360240163,-663.25723999,0.00013,2]
[338177313,1726360242904,-22184.97987689,0.00013,2]
[338177314,1726360242915,-13423.64513516,0.00013,2]
[338177316,1726360242951,-9225.0,0.00013,2]
[338177317,1726360242963,-6832.75213026,0.00013,2]
[338177318,1726360242974,-2151.55353911,0.00013,2]
[338177319,1726360242986,-433.47888487,0.00013,2]
[338177322,1726360243431,-3995.0,0.00013,2]
[338177323,1726360243454,-993.56644484,0.00013,2]
[338177324,1726360243467,-2488.55910474,0.00013,2]
[338177325,1726360243478,-482.99999997,0.00013,2]
[338177327,1726360245938,-1032.10201314,0.00013,2]
[338177328,1726360245949,-577715.66387684,0.00013,2]
[338177331,1726360246598,-3064.21523206,0.00013,2]
[338177332,1726360246609,-3023.2344,0.00013,2]
[338177333,1726360246642,-3893.8786,0.00013,2]
[338177335,1726360432517,217.5,0.00011124,2]
[338177336,1726360745516,248.45,0.00010959,2]
[338177337,1726360771890,153.77,0.00012527,2]
[338177339,1726360783805,231.02,0.00012527,2]
[338177340,1726360802683,500.0,0.00011164,2]
[338177341,1726360821180,500.0,0.00011164,2]
[338177342,1726360891932,250.0,0.00012614,2]
[338177343,1726360914167,155.21,0.00012614,2]
[338177344,1726360953011,263.9,0.00010718,2]
[338177345,1726361026053,4951.09907109,0.0001264,2]
[338177346,1726361129642,861.76,0.00012399,2]
[338177347,1726361129712,150.0,0.00011688,2]
[338177348,1726361129891,150.0,0.00012337,2]
[338177349,1726361182681,163.69,0.00012376,2]
[338177350,1726361204266,250.0,0.00012376,2]
[338177351,1726361217048,1852.42,0.00012413,2]
[338177357,1726361228035,200.0,0.000126,4]
[338177360,1726361255718,200.0,0.00012288,2]
[338177361,1726361264171,1000.0,0.000126,4]
[338177362,1726361280730,250.0,0.00012288,2]
[338177363,1726361290747,1036.01,0.00012292,2]
[338177364,1726361306594,417.81,0.0001231,2]
[338177365,1726361322257,1000.0,0.00012308,2]
[338177366,1726361339177,151.81,0.00010959,2]
[338177369,1726361393364,250.0,0.00012446,2]
[338177370,1726361428246,462.84,0.00012494,2]
[338177377,1726361432617,-800.0,0.0001266,2]
[338177378,1726361432628,-500.0,0.000127,4]
[338177379,1726361432638,-1084.24768313,0.0001274,2]
[338177380,1726361432651,-1676.25973395,0.0001274,2]
[338177381,1726361432664,-184.18770664,0.000128,2]
[338177382,1726361432673,-214.1211,0.000128,2]
[338177383,1726361432682,-800.0,0.000128,4]
[338177384,1726361432691,-3791.1011,0.000128,2]
[338177385,1726361432700,-150.0,0.00012899,2]
[338177386,1726361432709,-233.7602,0.000129,2]
[338177387,1726361432718,-158.3933148,0.000129,2]
[338177388,1726361432727,-4802.2494,0.000129,2]
[338177389,1726361432736,-109274.4742,0.000129,2]
[338177390,1726361432745,-3452.86,0.000129,2]
[338177391,1726361432754,-973.1725,0.000129,2]
[338177392,1726361432763,-424.9518,0.000129,2]
[338177393,1726361432772,-1000.0,0.000129,2]
[338177394,1726361432783,-704.9945,0.000129,2]
[338177395,1726361432795,-176.657109,0.000129,2]
[338177396,1726361432804,-203.53,0.000129,2]
[338177397,1726361432815,-167.27570747,0.000129,2]
[338177398,1726361432824,-180.76774717,0.000129,2]
[338177399,1726361432836,-1000.0,0.000129,4]
[338177400,1726361432845,-1200.2826,0.000129,2]
[338177401,1726361432856,-3101.93,0.000129,2]
[338177402,1726361432866,-2988.10348296,0.000129,2]
[338177403,1726361432876,-1250.89,0.000129,2]
[338177404,1726361432886,-322.67939192,0.000129,2]
[338177405,1726361432896,-500.0,0.00012973,2]
[338177406,1726361432907,-602.19037199,0.00012973,2]
[338177407,1726361432916,-500.0,0.00012973,2]
[338177408,1726361432925,-8541.68,0.00012973,2]
[338177409,1726361432935,-163.6,0.00012973,2]
[338177410,1726361432944,-500.0,0.00012973,2]
[338177411,1726361432953,-16409.14,0.00012973,2]
[338177412,1726361432967,-500.0,0.00012973,2]
[338177413,1726361432977,-263.9,0.00012981,2]
[338177414,1726361432987,-151.35147807,0.00012986,2]
[338177415,1726361432999,-150.99,0.0001299,2]
[338177416,1726361433010,-241.20022022,0.0001299,2]
[338177417,1726361433019,-151.56,0.0001299,2]
[338177418,1726361433028,-500.0,0.00012999,2]
[338177419,1726361433038,-500.0,0.00012999,2]
[338177420,1726361433047,-156.90946194,0.00012999,2]
[338177421,1726361433056,-432.56951627,0.00012999,2]
[338177422,1726361433065,-500.0,0.00012999,2]
[338177423,1726361433074,-921.74812853,0.00012999,2]
[338177424,1726361433083,-859.0,0.00013,2]
[338177425,1726361433092,-20637.74510566,0.00013,2]
[338177426,1726361433101,-239359.61722154,0.00013,2]
[338177427,1726361433125,-3641.40814063,0.00013,2]
[338177428,1726361433136,-479.16,0.00013,2]
[338177429,1726361433148,-27610.96155506,0.00013,2]
[338177430,1726361433163,-635.47460969,0.00013,2]
[338177431,1726361433175,-325.89,0.00013,2]
[338177432,1726361433209,-6849.58870273,0.00013,2]
[338177433,1726361433221,-2670.841426,0.00013,2]
[338177434,1726361433232,-555.14114462,0.00013,2]
[338177435,1726361433243,-5038.7342473,0.00013,2]
[338177436,1726361433254,-404.0365253,0.00013,2]
[338177437,1726361433265,-394968.44104043,0.00013,2]
[338177441,1726361438137,-3693.05223629,0.000128,2]
[338177442,1726361438194,-2752.71890291,0.000128,2]
[338177443,1726361438204,-311.26370048,0.00012973,2]
[338177444,1726361438214,-18101.97779889,0.00013,2]
[338177445,1726361438226,-1264.25000003,0.00013,2]
[338177446,1726361438238,-156967.3624032,0.00013,2]
[338177447,1726361438250,-509.3973985,0.00013,2]
[338177448,1726361438287,-514.10062394,0.00013,2]
[338177454,1726361440084,-331.37356652,0.00013,2]
[338177455,1726361440096,-1248.75854944,0.00013,2]
[338177456,1726361440118,-257.884,0.00013,2]
[338177457,1726361440209,-903.566698,0.00013,2]
[338177458,1726361440220,-3933.39359307,0.00013,2]
[338177462,1726361440278,-6373.65476593,0.00013,2]
[338177537,1726361443191,-378.703701,0.00013,2]
[338177538,1726361443203,-393.296299,0.00013,2]
[338177539,1726361443212,-3750.013701,0.00013,2]
[338177541,1726361444019,-2722.72632865,0.00013,2]
[338177542,1726361444030,-293.80853246,0.00013,2]
[338177543,1726361444042,-1728.53770147,0.00013,2]
[338177544,1726361444053,-1383.95848256,0.00013,2]
[338177545,1726361444064,-450.0,0.00013,2]
[338177546,1726361444077,-443.4506406,0.00013,2]
[338177547,1726361444089,-656.86101804,0.00013,2]
[338177575,1726361446224,-3151.26942458,0.00013,2]
[338177578,1726361446243,-540212.07645841,0.00013,2]
[338177579,1726361446262,-27035.30666,0.00013,2]
[338177586,1726361446324,-1619.0,0.00013,2]
[338177592,1726361446368,-361.14764114,0.00013,2]
[338177660,1726361461755,269.66,0.0001132,2]
[338177661,1726361531449,1050.0,0.00011,2]
[338177662,1726361614447,3093.356623,0.00012636,2]
[338177663,1726361650651,829.97459723,0.000123,2]
[338177664,1726361668423,1036.41124609,0.00012605,2]
[338177665,1726361671789,1195.54,0.00012595,2]
[338177666,1726361703426,1125.0,0.000125,30]
[338177668,1726361831600,250.0,0.00012424,2]
[338177670,1726361846930,250.0,0.00012424,2]
[338177671,1726361862966,575.46,0.00012425,2]
[338177672,1726361878394,195.03,0.00012463,2]
[338177673,1726361894719,250.0,0.00012468,2]
[338177674,1726361995654,640.0,0.00012632,2]
[338177675,1726362005026,272.77,0.00010744,2]
[338177676,1726362009440,156.2,0.00012633,2]
[338177677,1726362031653,1680.5,0.00012603,2]
[338177678,1726362055331,444.31,0.00012603,2]
[338177679,1726362184551,500.0,0.00012603,2]
[338177680,1726362200554,500.0,0.00012633,2]
[338177681,1726362228460,500.0,0.0001264,2]
[338177682,1726362238938,206.68609616,0.00012603,2]
[338177683,1726362250974,756.83,0.00012447,2]
[338177684,1726362275957,500.0,0.00012641,2]
[338177685,1726362281354,1852.42,0.0001246,2]
[338177686,1726362343170,250.0,0.00012311,2]
[338177687,1726362394519,23900.0,0.00012273,2]
[338177688,1726362397994,250.0,0.00012273,2]
[338177689,1726362402050,177.55,0.00012273,2]
[338177694,1726362435651,168.16,0.00010959,2]
[338177696,1726362541393,275.9,0.00010632,2]
[338177700,1726362566757,493.68,0.00012442,2]
[338177701,1726362608540,4249.61,0.00012566,2]
[338177702,1726362632196,-255.5570155,0.00012799,2]
[338177703,1726362632208,-609.86344662,0.00012799,2]
[338177704,1726362632268,-5950.0,0.00012799,2]
[338177705,1726362632280,-70.25683788,0.00012799,2]
[338177706,1726362632289,-259.49,0.0001289,2]
[338177707,1726362632298,-259.49,0.0001289,2]
[338177708,1726362632307,-275.9,0.00012896,2]
[338177709,1726362632316,-1126.84766022,0.00012899,2]
[338177710,1726362632326,-150.0,0.00012899,2]
[338177711,1726362632335,-225.5239,0.000129,2]
[338177712,1726362632343,-32.49160188,0.000129,2]
[338177713,1726362632354,-3152.61260283,0.000129,2]
[338177714,1726362632365,-899.999998,0.000129,2]
[338177715,1726362632377,-739.55629729,0.000129,2]
[338177716,1726362632386,-1563.5613,0.000129,2]
[338177717,1726362632395,-1000.0,0.000129,2]
[338177718,1726362632404,-16892.0058,0.000129,2]
[338177719,1726362632413,-475.1075,0.000129,2]
[338177720,1726362632422,-867.538723,0.000129,2]
[338177721,1726362632432,-43635.4375,0.000129,2]
[338177722,1726362632441,-378.9962,0.000129,2]
[338177723,1726362632450,-3028.0524,0.000129,2]
[338177724,1726362632459,-162.824,0.000129,2]
[338177725,1726362632469,-3565.87,0.000129,2]
[338177726,1726362632478,-197.57294018,0.000129,2]
[338177727,1726362632487,-1136.31,0.000129,2]
[338177728,1726362632496,-150.99,0.000129,2]
[338177729,1726362632505,-1246.22851,0.000129,2]
[338177730,1726362632514,-159.34471816,0.000129,2]
[338177731,1726362632523,-10000.0,0.0001295,2]
[338177732,1726362632533,-1246.22851,0.0001297,2]
[338177733,1726362632543,-500.0,0.00012973,2]
[338177734,1726362632552,-499.99,0.00012973,2]
[338177735,1726362632561,-912.19,0.00012973,2]
[338177736,1726362632570,-200.0,0.00012973,2]
[338177737,1726362632579,-500.0,0.00012973,2]
[338177739,1726362632588,-500.0,0.00012973,2]
[338177740,1726362632598,-151.55,0.0001299,2]
[338177741,1726362632607,-259.49,0.0001299,2]
[338177742,1726362632617,-1351.647,0.00012999,2]
[338177743,1726362632626,-500.0,0.00012999,2]
[338177744,1726362632635,-519.40523966,0.00012999,2]
[338177745,1726362632645,-500.0,0.00012999,2]
[338177746,1726362632654,-500.0,0.00012999,2]
[338177747,1726362632663,-500.0,0.00012999,2]
[338177748,1726362632672,-500.0,0.00012999,2]
[338177749,1726362632682,-315.28284163,0.00012999,2]
[338177750,1726362632691,-500.0,0.00012999,2]
[338177751,1726362632701,-245.79950094,0.00012999,2]
[338177752,1726362632710,-150.0,0.00012999,2]
[338177753,1726362632720,-833.0,0.00013,2]
[338177754,1726362632729,-203627.91893114,0.00013,2]
[338177755,1726362632751,-40522.42222045,0.00013,2]
[338177756,1726362632760,-76534.71795272,0.00013,2]
[338177757,1726362632772,-5693.984656,0.00013,2]
[338177758,1726362632783,-200139.60972496,0.00013,2]
[338177759,1726362632794,-315.30715705,0.00013,2]
[338177760,1726362632805,-567.46615402,0.00013,2]
[338177761,1726362632827,-4223.30804722,0.00013,2]
[338177766,1726362638633,-2006.20876235,0.000129,2]
[338177767,1726362638645,-626.16993068,0.000129,2]
[338177768,1726362638657,-1242.51024217,0.000129,2]
[338177769,1726362638666,-322.67939186,0.000129,2]
[338177770,1726362638676,-2370.85648115,0.0001295,2]
[338177771,1726362638687,-255.3477856,0.0001295,2]
[338177772,1726362638699,-294.63453983,0.0001295,2]
[338177773,1726362638755,-6950.33671476,0.0001295,2]
[338177774,1726362638765,-1183276.95611902,0.00013,2]
[338177775,1726362638774,-792.0,0.00013,2]
[338177776,1726362638784,-200.0,0.00013,2]
[338177777,1726362638793,-600.0,0.00013,2]
[338177778,1726362638802,-1090.15958473,0.00013,2]
[338177779,1726362638812,-1246.22851,0.00013,2]
[338177780,1726362638821,-1246.22851,0.00013,2]
[338177781,1726362638830,-360.0,0.00013009,2]
[338177782,1726362638840,-1246.22851,0.0001306,2]
[338177783,1726362638850,-1246.22851,0.0001313,2]
[338177784,1726362638860,-293.0,0.0001316,2]
[338177785,1726362638869,-293.0,0.0001348,2]
[338177786,1726362638879,-191.9,0.00013699,2]
[338177787,1726362638888,-365.36,0.000137,2]
[338177788,1726362638897,-359.0,0.000138,2]
[338177789,1726362638907,-293.0,0.0001381,2]
[338177790,1726362638916,-417.81,0.00013848,2]
[338177791,1726362638925,-197.57294016,0.000139,2]
[338177792,1726362638934,-500.0,0.00013904,2]
[338177793,1726362638943,-500.0,0.00013904,2]
[338177794,1726362638953,-575.46,0.00013978,2]
[338177795,1726362638964,-150.0,0.00014,5]
[338177796,1726362638973,-201.0,0.0001413,2]
[338177797,1726362638982,-293.0,0.0001413,2]
[338177798,1726362638991,-640.0,0.00014211,2]
[338177799,1726362639000,-443.9818065,0.00014342,2]
[338177800,1726362639010,-201.0,0.0001446,2]
[338177801,1726362639019,-293.0,0.0001446,2]
[338177802,1726362639028,-360.0,0.00014635,2]
[338177803,1726362639037,-201.0,0.0001478,2]
[338177804,1726362639046,-293.0,0.0001478,2]
[338177805,1726362639055,-206.7960771,0.0001489,2]
[338177806,1726362639064,-7650.000001,0.000149,2]
[338177807,1726362639073,-197.57294016,0.000149,2]
[338177808,1726362639082,-1244.0,0.000149,2]
[338177809,1726362639091,-151.55,0.0001498,2]
[338177810,1726362639100,-18165.13014947,0.0001499,2]
[338177811,1726362639110,-1058625.158855,0.0001499,5]
[338177812,1726362639119,-232.692915,0.0001499,2]